[Event "Najdorf Memorial-A 2022"]
[Site "Warsaw"]
[Date "2022.07.13"]
[Round "5.16"]
[White "Siekanska, Maria"]
[Black "Hertlein, Irena"]
[Result "1/2-1/2"]
[ECO "E62"]
[WhiteElo "1964"]
[BlackElo "1850"]
[Annotator "ChessBase"]
[PlyCount "88"]
[EventDate "2022.07.09"]
[EventType "swiss"]
[EventCountry "POL"]
[SourceTitle "playchess.com"]
[Source "ChessBase"]
[SourceQuality "1"]
[TimeControl "40/5400+30:1800+30"]

1. d4 {[%emt 0:00:02]} Nf6 {[%emt 0:05:29]} 2. c4 {[%emt 0:00:08]} g6 {[%emt 0:00:05]} 3. Nf3 {[%emt 0:01:47]} Bg7 {[%emt 0:00:41]} 4. g3 {[%emt 0:00:07]} d6 {[%emt 0:00:15]} 5. Bg2 {[%emt 0:00:18]} O-O {[%emt 0:00:16]} 6. O-O {[%emt 0:00:23]} Nc6 {[%emt 0:05:36]} 7. Nc3 {[%emt 0:01:52]} e5 {[%emt 0:01:32]} 8. d5 {[%emt 0:06:12]} Ne7 {[%emt 0:00:18]} 9. Qc2 {[%emt 0:05:37]} a5 {[%emt 0:13:15]} 10. a3 {[%emt 0:02:58]} Ne8 {[%emt 0:07:39]} 11. Rb1 {[%emt 0:19:34]} f5 {[%emt 0:03:09]} 12. b4 {[%emt 0:01:44]} b6 {[%emt 0:09:12]} 13. Qb3 {[%emt 0:05:34]} h6 {[%emt 0:04:38]} 14. Bb2 {[%emt 0:11:45]} axb4 {[%emt 0:10:21]} 15. axb4 {[%emt 0:00:15]} g5 {[%emt 0:01:12]} 16. c5 {[%emt 0:04:45]} f4 {[%emt 0:03:38]} 17. Ne4 {[%emt 0:04:09]} Ng6 {[%emt 0:05:57]} 18. Ra1 {[%emt 0:09:38]} Rxa1 {[%emt 0:04:45]} 19. Rxa1 {[%emt 0:00:19]} Bf5 {[%emt 0:01:05]} 20. Nfd2 {[%emt 0:01:04]} h5 {[%emt 0:03:01]} 21. cxb6 {[%emt 0:04:52]} cxb6 {[%emt 0:00:16]} 22. b5 {[%emt 0:01:31]} h4 {[%emt 0:06:17]} 23. Ra6 {[%emt 0:02:07]} g4 {[%emt 0:04:54]} 24. Qc3 {[%emt 0:03:01]} hxg3 {[%emt 0:03:51]} 25. hxg3 {[%emt 0:00:27]} fxg3 {[%emt 0:00:46]} 26. fxg3 {[%emt 0:00:24]} Nc7 {[%emt 0:03:57]} 27. Ra1 {[%emt 0:02:55]} Nxb5 {[%emt 0:00:38]} 28. Qb4 {[%emt 0:00:26]} Qd7 {[%emt 0:01:07]} 29. Nc4 {[%emt 0:00:49]} Bxe4 {[%emt 0:00:34]} 30. Bxe4 {[%emt 0:00:08]} Ne7 {[%emt 0:00:30]} 31. Nxb6 {[%emt 0:01:03]} Qb7 {[%emt 0:00:21]} 32. Nc4 {[%emt 0:02:17]} Nc8 {[%emt 0:00:36]} 33. Qd2 {[%emt 0:03:47]} Qf7 {[%emt 0:00:34]} 34. e3 {[%emt 0:00:28]} Qh5 {[%emt 0:00:33]} 35. Bg2 {[%emt 0:01:04]} Bh6 {[%emt 0:00:27]} 36. Qe2 {[%emt 0:01:19]} Qg5 {[%emt 0:00:29]} 37. Re1 {[%emt 0:01:11]} Nc7 {[%emt 0:00:32]} 38. Ba3 {[%emt 0:00:31]} Ne8 {[%emt 0:00:27]} 39. Qc2 {[%emt 0:01:04]} Bg7 {[%emt 0:00:35]} 40. Qe2 {[%emt 0:00:00]} Bh6 {[%emt 0:00:00]} 41. Rc1 {[%emt 0:07:45]} Nb6 {[%emt 0:04:25]} 42. Kh1 {[%emt 0:04:21]} Qh5+ {[%emt 0:06:38]} 43. Kg1 {[%emt 0:00:15]} Qg5 {[%emt 0:00:32]} 44. Kh1 {[%emt 0:00:19]} Qh5+ {[%emt 0:01:32]} 1/2-1/2

[Event "Najdorf Memorial-A 2022"]
[Site "Warsaw"]
[Date "2022.07.13"]
[Round "5.17"]
[White "Jaskiewicz, Kacper"]
[Black "Kowalczyk, Adam"]
[Result "1-0"]
[ECO "B40"]
[WhiteElo "1756"]
[BlackElo "1944"]
[Annotator "ChessBase"]
[PlyCount "57"]
[EventDate "2022.07.09"]
[EventType "swiss"]
[EventCountry "POL"]
[SourceTitle "playchess.com"]
[Source "ChessBase"]
[SourceQuality "1"]
[TimeControl "40/5400+30:1800+30"]

1. e4 {[%emt 0:08:29]} c5 {[%emt 0:00:06]} 2. Nf3 {[%emt 0:00:33]} e6 {[%emt 0:00:06]} 3. d4 {[%emt 0:00:02]} cxd4 {[%emt 0:00:07]} 4. Nxd4 {[%emt 0:00:08]} Nf6 {[%emt 0:00:05]} 5. Nc3 {[%emt 0:00:02]} Nc6 {[%emt 0:00:06]} 6. Ndb5 {[%emt 0:00:16]} Bb4 {[%emt 0:00:07]} 7. a3 {[%emt 0:00:02]} Bxc3+ {[%emt 0:00:06]} 8. Nxc3 {[%emt 0:00:02]} d5 {[%emt 0:00:05]} 9. exd5 {[%emt 0:00:02]} exd5 {[%emt 0:00:06]} 10. Bd3 {[%emt 0:00:27]} d4 {[%emt 0:00:19]} 11. Ne2 {[%emt 0:00:05]} h6 {[%emt 0:00:16]} 12. O-O {[%emt 0:00:22]} Qb6 {[%emt 0:07:01]} 13. b4 {[%emt 0:02:08]} Bg4 {[%emt 0:09:53]} 14. Bb2 {[%emt 0:04:42]} O-O-O {[%emt 0:02:13]} 15. f3 {[%emt 0:01:54]} Be6 {[%emt 0:00:18]} 16. Qe1 {[%emt 0:05:36]} Ne5 {[%emt 0:12:25]} 17. Qf2 {[%emt 0:02:01]} Nxd3 {[%emt 0:05:10]} 18. cxd3 {[%emt 0:00:08]} a6 {[%emt 0:00:09]} 19. Bxd4 {[%emt 0:05:51]} Qb5 {[%emt 0:06:38]} 20. Nc3 {[%emt 0:02:25]} Qxd3 {[%emt 0:23:21]} 21. Rfd1 {[%emt 0:00:25]} Qf5 {[%emt 0:00:22]} 22. Rac1 {[%emt 0:01:14]} Bc4 {[%emt 0:11:04]} 23. Bb6 {[%emt 0:18:16]} Rd3 {[%emt 0:08:17]} 24. g4 {[%emt 0:01:45]} Qxf3 {[%emt 0:04:36]} 25. Qxf3 {[%emt 0:00:41]} Rxf3 {[%emt 0:00:05]} 26. Nd5 {[%emt 0:00:22]} Nxd5 {[%emt 0:02:26]} 27. Rxc4+ {[%emt 0:00:04]} Kb8 {[%emt 0:00:25]} 28. Rxd5 {[%emt 0:00:04]} Re8 {[%emt 0:00:13]} 29. Rcd4 {[%emt 0:00:17]} 1-0

[Event "Najdorf Memorial-A 2022"]
[Site "Warsaw"]
[Date "2022.07.13"]
[Round "5.17"]
[White "Owoc, Jakub"]
[Black "Shilov, Sergej"]
[Result "1/2-1/2"]
[ECO "C58"]
[WhiteElo "1756"]
[BlackElo "2048"]
[Annotator "ChessBase"]
[PlyCount "36"]
[EventDate "2022.07.09"]
[EventType "swiss"]
[EventCountry "POL"]
[SourceTitle "playchess.com"]
[Source "ChessBase"]
[SourceQuality "1"]
[TimeControl "40/5400+30:1800+30"]

1. e4 {[%emt 0:00:04]} e5 {[%emt 0:00:25]} 2. Nf3 {[%emt 0:00:08]} Nc6 {[%emt 0:00:15]} 3. Bc4 {[%emt 0:00:08]} Nf6 {[%emt 0:00:14]} 4. Ng5 {[%emt 0:00:08]} d5 {[%emt 0:00:54]} 5. exd5 {[%emt 0:00:07]} Na5 {[%emt 0:00:01]} 6. Bb5+ {[%emt 0:00:10]} c6 {[%emt 0:00:08]} 7. dxc6 {[%emt 0:00:16]} bxc6 {[%emt 0:00:01]} 8. Bd3 {[%emt 0:00:11]} Nd5 {[%emt 0:01:30]} 9. Nf3 {[%emt 0:00:12]} Nf4 {[%emt 0:02:38]} 10. O-O {[%emt 0:02:17]} Bd6 {[%emt 0:03:09]} 11. Re1 {[%emt 0:07:29]} O-O {[%emt 0:08:56]} 12. Bf1 {[%emt 0:03:41]} c5 {[%emt 0:01:29]} 13. Nxe5 {[%emt 0:01:05]} Qg5 {[%emt 0:00:32]} 14. Nf3 {[%emt 0:04:51]} Nh3+ {[%emt 0:03:19]} 15. Kh1 {[%emt 0:00:06]} Nxf2+ {[%emt 0:01:21]} 16. Kg1 {[%emt 0:00:05]} Nh3+ {[%emt 0:00:19]} 17. Kh1 {[%emt 0:00:05]} Nf2+ {[%emt 0:01:34]} 18. Kg1 {[%emt 0:00:08]} Nh3+ {[%emt 0:00:10]} 1/2-1/2

[Event "Najdorf Memorial-A 2022"]
[Site "Warsaw"]
[Date "2022.07.13"]
[Round "5.18"]
[White "Lewandrowski, Tomasz"]
[Black "Rejniak, Zuzanna"]
[Result "1-0"]
[ECO "A45"]
[WhiteElo "1902"]
[BlackElo "1813"]
[Annotator "ChessBase"]
[PlyCount "83"]
[EventDate "2022.07.09"]
[EventType "swiss"]
[EventCountry "POL"]
[SourceTitle "playchess.com"]
[Source "ChessBase"]
[SourceQuality "1"]
[TimeControl "40/5400+30:1800+30"]

1. d4 {[%emt 0:00:29]} Nf6 {[%emt 0:00:13]} 2. Nc3 {[%emt 0:00:07]} d5 {[%emt 0:00:12]} 3. Bf4 {[%emt 0:00:16]} e6 {[%emt 0:02:14]} 4. Nb5 {[%emt 0:01:05]} Na6 {[%emt 0:00:46]} 5. e3 {[%emt 0:00:12]} Be7 {[%emt 0:08:50]} 6. h4 {[%emt 0:01:04]} Ne4 {[%emt 0:02:53]} 7. Bd3 {[%emt 0:07:22]} c6 {[%emt 0:04:05]} 8. Bxe4 {[%emt 0:02:10]} cxb5 {[%emt 0:00:05]} 9. Bd3 {[%emt 0:00:13]} Qa5+ {[%emt 0:02:54]} 10. Kf1 {[%emt 0:10:03]} Nb4 {[%emt 0:06:01]} 11. Nf3 {[%emt 0:01:56]} Nxd3 {[%emt 0:08:23]} 12. Qxd3 {[%emt 0:00:12]} f6 {[%emt 0:02:33]} 13. g3 {[%emt 0:07:38]} Bd7 {[%emt 0:01:18]} 14. Kg2 {[%emt 0:02:13]} Bc6 {[%emt 0:10:10]} 15. Kh2 {[%emt 0:02:42]} g6 {[%emt 0:04:50]} 16. Nd2 {[%emt 0:01:11]} O-O-O {[%emt 0:01:35]} 17. a4 {[%emt 0:06:58]} bxa4 {[%emt 0:04:14]} 18. Rhc1 {[%emt 0:06:17]} h6 {[%emt 0:14:02]} 19. g4 {[%emt 0:07:20]} g5 {[%emt 0:00:58]} 20. Bg3 {[%emt 0:00:12]} gxh4 {[%emt 0:02:16]} 21. Bxh4 {[%emt 0:02:51]} h5 {[%emt 0:00:10]} 22. g5 {[%emt 0:00:08]} fxg5 {[%emt 0:00:24]} 23. Bg3 {[%emt 0:00:16]} h4 {[%emt 0:02:38]} 24. Be5 {[%emt 0:00:11]} Rdf8 {[%emt 0:02:20]} 25. f4 {[%emt 0:01:16]} Rhg8 {[%emt 0:01:43]} 26. c4 {[%emt 0:04:35]} gxf4 {[%emt 0:03:24]} 27. Nb3 {[%emt 0:05:36]} Qa6 {[%emt 0:02:00]} 28. Qh7 {[%emt 0:01:59]} Kd8 {[%emt 0:08:29]} 29. Nc5 {[%emt 0:00:01]} Bxc5 {[%emt 0:00:24]} 30. Qc7+ {[%emt 0:00:13]} Ke8 {[%emt 0:00:03]} 31. dxc5 {[%emt 0:00:06]} Bd7 {[%emt 0:02:44]} 32. Bd6 {[%emt 0:00:38]} Qc6 {[%emt 0:01:08]} 33. Qb8+ {[%emt 0:01:48]} Qc8 {[%emt 0:00:07]} 34. Qxa7 {[%emt 0:00:47]} Rf7 {[%emt 0:00:37]} 35. exf4 {[%emt 0:01:23]} dxc4 {[%emt 0:00:29]} 36. Be5 {[%emt 0:12:31]} h3 {[%emt 0:01:12]} 37. Rg1 {[%emt 0:00:27]} Rg2+ {[%emt 0:00:05]} 38. Kxh3 {[%emt 0:00:54]} Rxg1 {[%emt 0:00:12]} 39. Rxg1 {[%emt 0:00:05]} Rf8 {[%emt 0:00:03]} 40. Rg3 {[%emt 0:00:00]} Qc6 {[%emt 0:00:00]} 41. Kh2 {[%emt 0:04:50]} Rf7 {[%emt 0:07:14]} 42. Rh3 {[%emt 0:01:45]} 1-0

[Event "Najdorf Memorial-A 2022"]
[Site "Warsaw"]
[Date "2022.07.13"]
[Round "5.19"]
[White "Sacharewicz, Krzysztof"]
[Black "Adamski, Jan"]
[Result "0-1"]
[ECO "B40"]
[WhiteElo "1832"]
[BlackElo "2136"]
[Annotator "ChessBase"]
[PlyCount "92"]
[EventDate "2022.07.09"]
[EventType "swiss"]
[EventCountry "POL"]
[SourceTitle "playchess.com"]
[Source "ChessBase"]
[SourceQuality "1"]
[TimeControl "40/5400+30:1800+30"]

1. e4 {[%emt 0:00:02]} c5 {[%emt 0:04:00]} 2. Nf3 {[%emt 0:00:02]} e6 {[%emt 0:00:17]} 3. c3 {[%emt 0:00:03]} d5 {[%emt 0:01:48]} 4. exd5 {[%emt 0:01:44]} Qxd5 {[%emt 0:00:05]} 5. d4 {[%emt 0:00:26]} Nf6 {[%emt 0:00:03]} 6. Be3 {[%emt 0:01:53]} cxd4 {[%emt 0:01:53]} 7. Qxd4 {[%emt 0:04:58]} Nc6 {[%emt 0:05:00]} 8. Qxd5 {[%emt 0:01:21]} Nxd5 {[%emt 0:00:08]} 9. Bc1 {[%emt 0:09:08]} f6 {[%emt 0:05:24]} 10. Bc4 {[%emt 0:03:18]} Nb6 {[%emt 0:01:27]} 11. Bb3 {[%emt 0:00:30]} Na5 {[%emt 0:00:18]} 12. Bc2 {[%emt 0:02:06]} e5 {[%emt 0:00:39]} 13. b3 {[%emt 0:05:16]} Be6 {[%emt 0:01:51]} 14. c4 {[%emt 0:11:24]} Rc8 {[%emt 0:05:17]} 15. Be3 {[%emt 0:02:00]} Kf7 {[%emt 0:10:48]} 16. Nbd2 {[%emt 0:03:49]} Nd7 {[%emt 0:04:20]} 17. Bd3 {[%emt 0:05:37]} Nc6 {[%emt 0:08:15]} 18. O-O {[%emt 0:04:52]} Nc5 {[%emt 0:07:41]} 19. Bxc5 {[%emt 0:04:27]} Bxc5 {[%emt 0:00:04]} 20. Ne4 {[%emt 0:00:07]} Be7 {[%emt 0:04:58]} 21. Rad1 {[%emt 0:00:53]} Rhd8 {[%emt 0:14:49]} 22. h3 {[%emt 0:05:30]} a6 {[%emt 0:08:34]} 23. Bb1 {[%emt 0:07:08]} h6 {[%emt 0:06:24]} 24. Ng3 {[%emt 0:01:20]} g6 {[%emt 0:00:12]} 25. Rfe1 {[%emt 0:02:59]} Bb4 {[%emt 0:00:29]} 26. Rf1 {[%emt 0:01:51]} f5 {[%emt 0:01:23]} 27. Ne2 {[%emt 0:04:05]} Kf6 {[%emt 0:00:57]} 28. Bc2 {[%emt 0:00:31]} Bc5 {[%emt 0:03:20]} 29. a4 {[%emt 0:06:45]} e4 {[%emt 0:00:45]} 30. Nh2 {[%emt 0:01:08]} Bd6 {[%emt 0:02:15]} 31. Rfe1 {[%emt 0:00:39]} Nb4 {[%emt 0:00:32]} 32. Bb1 {[%emt 0:00:33]} Be5 {[%emt 0:00:26]} 33. Nc1 {[%emt 0:01:41]} Bc3 {[%emt 0:00:50]} 34. Rf1 {[%emt 0:00:02]} Bd2 {[%emt 0:01:31]} 35. Na2 {[%emt 0:01:31]} Nc6 {[%emt 0:00:25]} 36. Nc1 {[%emt 0:01:59]} Bxc1 {[%emt 0:00:28]} 37. Rxc1 {[%emt 0:00:02]} Nd4 {[%emt 0:00:04]} 38. Rfe1 {[%emt 0:02:24]} Nxb3 {[%emt 0:00:06]} 39. Rc3 {[%emt 0:00:04]} Bxc4 {[%emt 0:00:52]} 40. Ba2 {[%emt 0:00:00]} Na5 {[%emt 0:00:00]} 41. Rec1 {[%emt 0:00:13]} Be6 {[%emt 0:07:54]} 42. Rxc8 {[%emt 0:01:17]} Rxc8 {[%emt 0:00:11]} 43. Rxc8 {[%emt 0:00:23]} Bxc8 {[%emt 0:00:02]} 44. Nf1 {[%emt 0:00:11]} Bd7 {[%emt 0:02:24]} 45. Ne3 {[%emt 0:00:02]} Bxa4 {[%emt 0:01:23]} 46. Nd5+ {[%emt 0:00:05]} Ke5 {[%emt 0:00:35]} 0-1

[Event "Najdorf Memorial-A 2022"]
[Site "Warsaw"]
[Date "2022.07.14"]
[Round "6.1"]
[White "Jarmula, Lukasz"]
[Black "Sarkar, Justin"]
[Result "0-1"]
[ECO "A45"]
[WhiteElo "2452"]
[BlackElo "2346"]
[Annotator "ChessBase"]
[PlyCount "126"]
[EventDate "2022.07.09"]
[EventType "swiss"]
[EventCountry "POL"]
[SourceTitle "playchess.com"]
[Source "ChessBase"]
[SourceQuality "1"]
[TimeControl "40/5400+30:1800+30"]

1. d4 {[%emt 0:00:02]} Nf6 {[%emt 0:00:23]} 2. Bf4 {[%emt 0:00:08]} d5 {[%emt 0:00:31]} 3. e3 {[%emt 0:00:08]} Bg4 {[%emt 0:05:04]} 4. Nf3 {[%emt 0:02:35]} e6 {[%emt 0:00:08]} 5. Nbd2 {[%emt 0:00:45]} Bd6 {[%emt 0:06:38]} 6. Bg3 {[%emt 0:02:48]} O-O {[%emt 0:02:03]} 7. Bd3 {[%emt 0:00:23]} c5 {[%emt 0:02:41]} 8. c3 {[%emt 0:03:57]} Nc6 {[%emt 0:01:36]} 9. Qb1 {[%emt 0:00:44]} Ne7 {[%emt 0:19:50]} 10. dxc5 {[%emt 0:18:54]} Bxc5 {[%emt 0:00:21]} 11. Ne5 {[%emt 0:00:11]} Bf5 {[%emt 0:02:32]} 12. Bh4 {[%emt 0:01:18]} Bxd3 {[%emt 0:01:04]} 13. Nxd3 {[%emt 0:00:37]} Bb6 {[%emt 0:07:09]} 14. Bxf6 {[%emt 0:01:16]} gxf6 {[%emt 0:00:08]} 15. O-O {[%emt 0:00:46]} f5 {[%emt 0:03:25]} 16. Qd1 {[%emt 0:01:45]} Ng6 {[%emt 0:00:56]} 17. Qh5 {[%emt 0:02:55]} Qh4 {[%emt 0:02:13]} 18. Qxh4 {[%emt 0:03:39]} Nxh4 {[%emt 0:00:05]} 19. c4 {[%emt 0:02:53]} Rac8 {[%emt 0:07:57]} 20. Rfc1 {[%emt 0:06:13]} dxc4 {[%emt 0:03:46]} 21. Nxc4 {[%emt 0:00:31]} Rfd8 {[%emt 0:00:40]} 22. Ne1 {[%emt 0:02:13]} Bc7 {[%emt 0:08:01]} 23. g3 {[%emt 0:01:50]} Ng6 {[%emt 0:00:09]} 24. Nf3 {[%emt 0:00:51]} b5 {[%emt 0:02:32]} 25. Ncd2 {[%emt 0:01:38]} Be5 {[%emt 0:03:34]} 26. Nxe5 {[%emt 0:03:11]} Nxe5 {[%emt 0:06:29]} 27. Nb3 {[%emt 0:03:55]} Nd3 {[%emt 0:00:09]} 28. Rxc8 {[%emt 0:02:12]} Rxc8 {[%emt 0:00:01]} 29. Nd4 {[%emt 0:00:44]} a6 {[%emt 0:02:56]} 30. b3 {[%emt 0:05:35]} Kf8 {[%emt 0:01:50]} 31. Rd1 {[%emt 0:03:08]} Rc1 {[%emt 0:00:45]} 32. Rxc1 {[%emt 0:00:17]} Nxc1 {[%emt 0:00:03]} 33. a4 {[%emt 0:01:17]} bxa4 {[%emt 0:04:26]} 34. bxa4 {[%emt 0:00:10]} Ke7 {[%emt 0:00:03]} 35. Kg2 {[%emt 0:07:20]} Nd3 {[%emt 0:01:28]} 36. f4 {[%emt 0:02:47]} Nb2 {[%emt 0:01:29]} 37. a5 {[%emt 0:01:20]} Kd6 {[%emt 0:02:13]} 38. Kh3 {[%emt 0:01:44]} Nc4 {[%emt 0:00:12]} 39. Kh4 {[%emt 0:06:08]} Nxa5 {[%emt 0:02:06]} 40. Kg5 {[%emt 0:00:00]} Nc4 {[%emt 0:00:00]} 41. Nc2 {[%emt 0:09:21]} a5 {[%emt 0:13:06]} 42. Kh6 {[%emt 0:01:22]} Ke7 {[%emt 0:01:37]} 43. Kxh7 {[%emt 0:07:00]} Kf8 {[%emt 0:00:14]} 44. h3 a4 45. g4 {[%emt 0:07:12]} fxg4 {[%emt 0:10:09]} 46. hxg4 {[%emt 0:00:06]} a3 {[%emt 0:00:11]} 47. g5 {[%emt 0:16:37]} a2 {[%emt 0:00:29]} 48. e4 {[%emt 0:00:53]} Nd6 {[%emt 0:00:56]} 49. g6 {[%emt 0:01:14]} fxg6 {[%emt 0:00:18]} 50. Kxg6 {[%emt 0:00:04]} Nxe4 {[%emt 0:01:24]} 51. Kh5 {[%emt 0:00:08]} Ke7 {[%emt 0:01:59]} 52. Kg4 {[%emt 0:00:09]} Kf6 {[%emt 0:02:03]} 53. Na1 {[%emt 0:00:35]} Nd2 {[%emt 0:00:12]} 54. Kg3 {[%emt 0:00:46]} Kf5 {[%emt 0:00:31]} 55. Kf2 {[%emt 0:00:30]} Kxf4 {[%emt 0:00:30]} 56. Ke2 {[%emt 0:00:09]} Nf3 {[%emt 0:00:53]} 57. Kd3 {[%emt 0:01:18]} e5 {[%emt 0:00:14]} 58. Kc2 {[%emt 0:00:23]} Nd4+ {[%emt 0:00:58]} 59. Kd3 {[%emt 0:00:55]} Kf3 {[%emt 0:00:08]} 60. Kc3 {[%emt 0:00:08]} Ke3 {[%emt 0:00:47]} 61. Kc4 {[%emt 0:00:32]} Kd2 {[%emt 0:00:22]} 62. Kd5 {[%emt 0:00:27]} Kc3 {[%emt 0:00:33]} 63. Kxe5 {[%emt 0:00:15]} Nb3 {[%emt 0:00:30]} 0-1

[Event "Najdorf Memorial-A 2022"]
[Site "Warsaw"]
[Date "2022.07.14"]
[Round "6.1"]
[White "Rozumek, Krzysztof"]
[Black "Vanduyfhuys, Daria"]
[Result "0-1"]
[ECO "A00"]
[WhiteElo "1801"]
[BlackElo "2094"]
[Annotator "ChessBase"]
[PlyCount "80"]
[EventDate "2022.07.09"]
[EventType "swiss"]
[EventCountry "POL"]
[SourceTitle "playchess.com"]
[Source "ChessBase"]
[SourceQuality "1"]
[TimeControl "40/5400+30:1800+30"]

1. h3 {[%emt 0:00:03]} e5 {[%emt 0:00:15]} 2. c3 {[%emt 0:00:01]} d5 {[%emt 0:00:18]} 3. d4 {[%emt 0:00:02]} exd4 {[%emt 0:00:10]} 4. cxd4 {[%emt 0:00:02]} Bd6 {[%emt 0:00:34]} 5. Nc3 {[%emt 0:00:04]} c6 {[%emt 0:00:50]} 6. Nf3 {[%emt 0:00:03]} Nf6 {[%emt 0:00:09]} 7. Bg5 {[%emt 0:01:03]} h6 {[%emt 0:00:28]} 8. Bxf6 {[%emt 0:00:22]} Qxf6 {[%emt 0:00:11]} 9. e3 {[%emt 0:00:02]} Bf5 {[%emt 0:03:03]} 10. Bd3 {[%emt 0:01:41]} Nd7 {[%emt 0:02:54]} 11. Qe2 {[%emt 0:01:51]} O-O {[%emt 0:11:15]} 12. Rc1 {[%emt 0:04:48]} Rfe8 {[%emt 0:01:17]} 13. Bxf5 {[%emt 0:00:33]} Qxf5 {[%emt 0:00:06]} 14. Qc2 {[%emt 0:00:26]} Qe6 {[%emt 0:03:05]} 15. O-O {[%emt 0:00:45]} Nf6 {[%emt 0:01:36]} 16. Na4 {[%emt 0:04:09]} Ne4 {[%emt 0:03:09]} 17. Nc5 {[%emt 0:01:56]} Qe7 {[%emt 0:00:58]} 18. Nxe4 {[%emt 0:03:36]} dxe4 {[%emt 0:00:09]} 19. Nd2 {[%emt 0:00:09]} Rad8 {[%emt 0:00:46]} 20. f4 {[%emt 0:01:31]} exf3 {[%emt 0:02:35]} 21. Rxf3 {[%emt 0:00:02]} Bb8 {[%emt 0:03:45]} 22. Qc5 {[%emt 0:07:48]} Qc7 {[%emt 0:15:30]} 23. Nf1 {[%emt 0:00:41]} Re6 {[%emt 0:00:27]} 24. Rc2 {[%emt 0:08:32]} Qd7 {[%emt 0:09:20]} 25. Qf5 {[%emt 0:05:44]} Qe8 {[%emt 0:00:35]} 26. Rcf2 {[%emt 0:05:46]} Rd7 {[%emt 0:00:44]} 27. Qc2 {[%emt 0:06:30]} Bc7 {[%emt 0:01:35]} 28. Qb3 {[%emt 0:00:44]} Bd8 {[%emt 0:00:29]} 29. Nh2 {[%emt 0:07:32]} Bg5 {[%emt 0:09:31]} 30. Ng4 {[%emt 0:06:17]} Rde7 {[%emt 0:01:44]} 31. Kh1 {[%emt 0:05:53]} h5 {[%emt 0:07:34]} 32. Ne5 {[%emt 0:02:03]} f6 {[%emt 0:03:43]} 33. Nc4 {[%emt 0:01:48]} Kh8 {[%emt 0:00:43]} 34. a4 {[%emt 0:00:34]} b5 {[%emt 0:00:55]} 35. axb5 {[%emt 0:00:47]} cxb5 {[%emt 0:00:05]} 36. Na3 {[%emt 0:02:52]} Bxe3 {[%emt 0:00:43]} 37. Rxe3 {[%emt 0:01:14]} Rxe3 {[%emt 0:00:06]} 38. Qd5 {[%emt 0:02:18]} Re1+ {[%emt 0:04:42]} 39. Kh2 {[%emt 0:00:03]} h4 {[%emt 0:12:44]} 40. Nxb5 {[%emt 0:00:00]} Qb8+ {[%emt 0:00:00]} 0-1

[Event "Najdorf Memorial-A 2022"]
[Site "Warsaw"]
[Date "2022.07.14"]
[Round "6.2"]
[White "Fiedorek, Michal"]
[Black "Iwanczuk, Krzysztof"]
[Result "1-0"]
[ECO "C54"]
[WhiteElo "2289"]
[BlackElo "1947"]
[Annotator "ChessBase"]
[PlyCount "73"]
[EventDate "2022.07.09"]
[EventType "swiss"]
[EventCountry "POL"]
[SourceTitle "playchess.com"]
[Source "ChessBase"]
[SourceQuality "1"]
[TimeControl "40/5400+30:1800+30"]

1. e4 {[%emt 0:04:11]} e5 {[%emt 0:00:07]} 2. Nf3 {[%emt 0:00:12]} Nc6 {[%emt 0:00:06]} 3. Bc4 {[%emt 0:01:03]} Bc5 {[%emt 0:00:09]} 4. c3 {[%emt 0:00:26]} Nf6 {[%emt 0:00:08]} 5. d3 {[%emt 0:00:09]} O-O {[%emt 0:00:16]} 6. O-O {[%emt 0:00:28]} d5 {[%emt 0:00:13]} 7. exd5 {[%emt 0:01:34]} Nxd5 {[%emt 0:00:07]} 8. Bb5 {[%emt 0:02:40]} Bd6 {[%emt 0:06:48]} 9. Re1 {[%emt 0:03:22]} Re8 {[%emt 0:04:20]} 10. Nbd2 {[%emt 0:01:02]} Nb6 {[%emt 0:11:58]} 11. a4 {[%emt 0:02:52]} a6 {[%emt 0:02:06]} 12. Bxc6 {[%emt 0:00:36]} bxc6 {[%emt 0:00:06]} 13. a5 {[%emt 0:01:47]} Nd5 {[%emt 0:00:37]} 14. Nc4 {[%emt 0:13:45]} f6 {[%emt 0:08:09]} 15. h3 {[%emt 0:07:52]} Bf5 {[%emt 0:03:29]} 16. d4 {[%emt 0:16:36]} e4 {[%emt 0:04:54]} 17. Nh2 {[%emt 0:04:00]} Qd7 {[%emt 0:03:58]} 18. Nf1 {[%emt 0:03:13]} Bg6 {[%emt 0:04:18]} 19. Qa4 {[%emt 0:02:45]} Rad8 {[%emt 0:23:23]} 20. Nxd6 {[%emt 0:08:15]} Qxd6 {[%emt 0:00:45]} 21. Ne3 {[%emt 0:09:30]} Bf7 {[%emt 0:02:24]} 22. Qd1 {[%emt 0:04:30]} g6 {[%emt 0:01:30]} 23. Ng4 {[%emt 0:01:58]} Kh8 {[%emt 0:10:21]} 24. Qe2 {[%emt 0:00:50]} Ra8 {[%emt 0:01:13]} 25. Nh6 {[%emt 0:01:22]} Qd7 {[%emt 0:02:33]} 26. Bd2 {[%emt 0:03:09]} f5 {[%emt 0:02:41]} 27. c4 {[%emt 0:00:58]} Nf6 {[%emt 0:00:11]} 28. Nxf7+ {[%emt 0:01:11]} Qxf7 {[%emt 0:00:06]} 29. Bf4 {[%emt 0:00:16]} c5 {[%emt 0:01:25]} 30. d5 {[%emt 0:00:49]} Nh5 {[%emt 0:00:22]} 31. Bd2 {[%emt 0:01:36]} f4 {[%emt 0:00:26]} 32. Qg4 {[%emt 0:00:22]} Kg8 {[%emt 0:02:18]} 33. Rad1 {[%emt 0:00:12]} c6 {[%emt 0:02:32]} 34. dxc6 {[%emt 0:01:56]} Qxc4 {[%emt 0:00:39]} 35. Bxf4 {[%emt 0:00:53]} Nf6 {[%emt 0:00:08]} 36. Qg5 {[%emt 0:00:31]} Re6 {[%emt 0:00:36]} 37. c7 {[%emt 0:00:26]} 1-0